bitfinex/quotes_BTCUSD_20250902
["timestamp","ask_amount","ask_price","bid_price","bid_amount"]
[1756773599979,0.76683196,109200.0,109190.0,0.34144695]
[1756773600586,0.76583196,109200.0,109190.0,0.34144695]
[1756773600807,0.00205,109200.0,109190.0,0.34144695]
[1756773601011,0.367528,109210.0,109200.0,0.18315018]
[1756773601218,0.31784389,109210.0,109200.0,0.19048955]
[1756773601484,0.29236589,109210.0,109200.0,0.18525018]
[1756773601814,0.4785993,109210.0,109190.0,0.34439695]
[1756773602012,0.29031589,109200.0,109190.0,0.34439695]
[1756773602264,0.47551607,109200.0,109190.0,0.34649695]
[1756773602478,0.29031589,109200.0,109190.0,0.34449695]
[1756773602687,0.47551607,109200.0,109190.0,0.34449695]
[1756773602900,0.76893196,109200.0,109190.0,0.15628]
[1756773603113,0.76893196,109200.0,109170.0,0.26575053]
[1756773603114,0.18316695,109190.0,109170.0,0.26575053]
[1756773603329,0.18316695,109190.0,109170.0,0.07091133]
[1756773603330,0.47554962,109180.0,109170.0,0.07091133]
[1756773603545,0.47554962,109180.0,109170.0,0.41035184]
[1756773603775,0.18833373,109180.0,109170.0,0.22715133]
[1756773603980,0.47864962,109180.0,109170.0,0.15671133]
[1756773604859,0.65784989,109190.0,109180.0,0.18318373]
[1756773605087,0.29031589,109190.0,109180.0,0.18829373]
[1756773605304,0.18318373,109180.0,109170.0,0.25162732]
[1756773605510,0.47563962,109180.0,109170.0,0.43182783]
[1756773605731,0.34,109190.0,109180.0,0.18318373]
[1756773605939,0.81348284,109190.0,109180.0,0.18318373]
[1756773606149,0.81562284,109190.0,109180.0,0.18318373]
[1756773606365,0.81562284,109190.0,109180.0,0.18518373]
[1756773606569,0.52530695,109190.0,109180.0,0.18518373]
[1756773606784,0.81562284,109190.0,109180.0,0.18713373]
[1756773607858,0.81562284,109190.0,109180.0,0.19029373]
[1756773608239,0.81562284,109190.0,109180.0,0.18829373]
[1756773608445,0.81348284,109190.0,109180.0,0.18829373]
[1756773608650,0.63031589,109190.0,109180.0,0.19029373]
[1756773608857,0.81348284,109190.0,109180.0,0.19029373]
[1756773609467,0.81562284,109190.0,109180.0,0.18829373]
[1756773609676,0.63245589,109190.0,109180.0,0.19229373]
[1756773609876,0.81562284,109190.0,109180.0,0.18718373]
[1756773611333,0.84315484,109190.0,109180.0,0.18718373]
[1756773612218,0.84636484,109190.0,109180.0,0.16024]
[1756773612438,0.93828083,109190.0,109180.0,0.004]
[1756773612640,0.84636484,109190.0,109180.0,0.004]
[1756773613004,0.52318373,109180.0,109170.0,0.15671133]
[1756773613208,0.81670962,109180.0,109170.0,0.15671133]
[1756773613434,0.52853373,109180.0,109170.0,0.33991184]
[1756773613597,0.55285873,109180.0,109170.0,0.33991184]
[1756773614228,0.55285873,109180.0,109170.0,0.34186184]
[1756773615643,0.55285873,109180.0,109170.0,0.34386184]
[1756773617258,0.55285873,109180.0,109170.0,0.34702184]
[1756773617931,0.55285873,109180.0,109170.0,0.34191184]
[1756773618644,0.55285873,109180.0,109170.0,0.34386184]
[1756773619369,0.55285873,109180.0,109170.0,0.34191184]
[1756773623213,0.55071873,109180.0,109170.0,0.34702184]
[1756773623901,0.17918868,109180.0,109170.0,0.34702184]
[1756773624111,0.1831684,109190.0,109180.0,0.18317561]
[1756773624325,0.2107024,109190.0,109180.0,0.18828561]
[1756773624537,0.18318373,109180.0,109170.0,0.34507184]
[1756773624746,0.18318373,109180.0,109170.0,0.34702184]
[1756773625489,0.18318373,109180.0,109170.0,0.34502184]
[1756773625694,0.2139124,109190.0,109170.0,0.34502184]
[1756773625905,0.2149124,109190.0,109170.0,0.34502184]
[1756773626115,0.21170095,109190.0,109180.0,0.18634373]
[1756773626321,0.21170095,109190.0,109170.0,0.34386184]
[1756773626322,0.21284095,109190.0,109170.0,0.34507184]
[1756773626565,0.21284095,109190.0,109180.0,0.18318373]
[1756773626977,0.21070095,109190.0,109180.0,0.18829373]
[1756773628041,0.21284095,109190.0,109180.0,0.18829373]
[1756773628241,0.21070095,109190.0,109180.0,0.19129373]
[1756773628445,0.027534,109190.0,109180.0,0.19129373]
[1756773629126,0.027534,109190.0,109180.0,0.19229373]
[1756773630177,0.21070095,109190.0,109180.0,0.19229373]
[1756773631942,0.027534,109190.0,109180.0,0.19229373]
[1756773633012,0.18315071,109200.0,109190.0,0.18316695]
[1756773633164,0.18315071,109200.0,109190.0,0.34131695]
[1756773633371,0.21068171,109200.0,109190.0,0.34447695]
[1756773634238,0.21282171,109200.0,109190.0,0.34447695]
[1756773634391,0.21282171,109200.0,109190.0,0.34647695]
[1756773634591,0.21282171,109200.0,109190.0,0.16331]
[1756773635201,0.21282171,109200.0,109190.0,0.1582]
[1756773638417,0.21282171,109200.0,109190.0,0.34136695]
[1756773638649,0.21282171,109200.0,109190.0,0.34343695]
[1756773640182,0.21282171,109200.0,109190.0,0.16027]
[1756773641059,0.21282171,109200.0,109190.0,0.34343695]
[1756773642522,0.21282171,109200.0,109190.0,0.34653695]
[1756773643639,0.21068171,109200.0,109190.0,0.34653695]
[1756773643853,0.027531,109200.0,109190.0,0.43845294]
[1756773644074,0.69909499,109220.0,109210.0,0.18313341]
[1756773644277,0.56463368,109220.0,109210.0,0.34136341]
[1756773644490,0.56463368,109220.0,109210.0,0.34446341]
[1756773644697,0.59215868,109220.0,109210.0,0.16133]
[1756773645138,0.59215868,109220.0,109210.0,0.34446341]
[1756773645287,0.59415868,109220.0,109210.0,0.34446341]
[1756773645557,0.59515868,109220.0,109210.0,0.34446341]
[1756773646282,0.59315868,109220.0,109210.0,0.34446341]
[1756773646815,0.59215868,109220.0,109210.0,0.34446341]
[1756773647018,0.57243999,109220.0,109210.0,0.34446341]
[1756773647516,0.57243999,109220.0,109210.0,0.15616]
[1756773647709,0.18313341,109210.0,109200.0,0.15612]
[1756773647931,0.18315018,109200.0,109190.0,0.0031]
[1756773648122,0.18513018,109200.0,109190.0,0.33928695]
[1756773648329,0.18513018,109200.0,109190.0,0.34135695]
[1756773648548,0.21266018,109200.0,109190.0,0.34445695]
[1756773648755,0.21266018,109200.0,109190.0,0.15612]
[1756773648969,0.18316695,109190.0,109180.0,0.1862835]
[1756773649163,0.18514695,109190.0,109180.0,0.3444735]
[1756773649597,0.18316695,109190.0,109180.0,0.3444735]
[1756773649804,0.21068018,109200.0,109180.0,0.3444735]
[1756773650025,0.21068018,109200.0,109190.0,0.001]
[1756773650165,0.21266018,109200.0,109190.0,0.001]
[1756773650585,0.21266018,109200.0,109190.0,0.004]
[1756773650972,0.21266018,109200.0,109180.0,0.3424035]
[1756773651496,0.21266018,109200.0,109190.0,0.002]
[1756773651726,0.21266018,109200.0,109180.0,0.3434035]
[1756773651888,0.21266018,109200.0,109180.0,0.3424035]
[1756773652089,0.21266018,109200.0,109180.0,0.3444035]
[1756773652808,0.18316695,109190.0,109180.0,0.3444035]
[1756773653086,0.18316695,109190.0,109180.0,0.3464735]
[1756773653470,0.18316695,109190.0,109180.0,0.3444735]
[1756773653885,0.21068018,109200.0,109180.0,0.3444735]
[1756773654302,0.21068018,109200.0,109180.0,0.3474735]
[1756773654501,0.21068018,109200.0,109180.0,0.3484735]
[1756773654941,0.21068018,109200.0,109180.0,0.3474735]
[1756773655100,0.18316695,109190.0,109180.0,0.3444735]
[1756773655301,0.18316695,109190.0,109180.0,0.3464735]
[1756773655571,0.18514695,109190.0,109180.0,0.3464735]
[1756773656572,0.18514695,109190.0,109180.0,0.3444735]
[1756773656779,0.21068018,109200.0,109180.0,0.3444735]
[1756773656985,0.21068018,109200.0,109190.0,0.18316695]
[1756773657187,0.21266018,109200.0,109190.0,0.18316695]
[1756773657408,0.21266018,109200.0,109180.0,0.3464035]
[1756773657642,0.18316695,109190.0,109180.0,0.3464035]
[1756773657782,0.18316695,109190.0,109180.0,0.3444735]
[1756773657983,0.21068018,109200.0,109180.0,0.3444735]
[1756773658673,0.21068018,109200.0,109180.0,0.3464735]
[1756773659004,0.18316695,109190.0,109180.0,0.3464735]
[1756773659205,0.18316695,109190.0,109180.0,0.3474735]
[1756773659872,0.21068018,109200.0,109190.0,0.18316695]
[1756773660079,0.21266018,109200.0,109190.0,0.18523695]
[1756773660274,0.21266018,109200.0,109190.0,0.00207]
[1756773660451,0.18316695,109190.0,109180.0,0.3454035]
[1756773660662,0.18316695,109190.0,109180.0,0.3474735]
[1756773660894,0.21068018,109200.0,109190.0,0.18316695]
[1756773661095,0.02753,109200.0,109190.0,0.48110737]
[1756773661448,0.21068018,109200.0,109190.0,0.00517]
[1756773661649,0.21266018,109200.0,109190.0,0.19033695]
[1756773661858,0.21266018,109200.0,109190.0,0.15808]
[1756773662530,0.21266018,109200.0,109190.0,0.34641695]
[1756773663464,0.21266018,109200.0,109190.0,0.16325]
[1756773664304,0.21266018,109200.0,109190.0,0.34641695]
[1756773664713,0.21266018,109200.0,109190.0,0.16325]
[1756773664927,0.21266018,109200.0,109190.0,0.34641695]
[1756773668196,0.21266018,109200.0,109190.0,0.16325]
[1756773668405,0.21575018,109200.0,109190.0,0.15808]
[1756773668613,0.55575018,109200.0,109190.0,0.15808]
[1756773669777,0.71183018,109200.0,109190.0,0.15808]
[1756773670136,0.71183018,109200.0,109190.0,0.002]
[1756773671733,0.80374617,109200.0,109190.0,0.002]
[1756773671965,0.84804034,109200.0,109190.0,0.002]
[1756773677364,0.87912071,109200.0,109190.0,0.002]
[1756773677790,0.87909973,109200.0,109190.0,0.002]
[1756773678434,0.8790956,109200.0,109190.0,0.002]
[1756773679357,0.87267671,109200.0,109190.0,0.002]
[1756773680678,0.88796812,109200.0,109190.0,0.002]
[1756773682038,0.87267671,109200.0,109190.0,0.002]
[1756773682844,0.84802055,109200.0,109190.0,0.002]
[1756773690396,0.84493055,109200.0,109190.0,0.002]
[1756773690776,0.84802055,109200.0,109190.0,0.002]
[1756773691790,0.84493055,109200.0,109190.0,0.002]
[1756773692701,0.84490876,109200.0,109190.0,0.002]
[1756773693061,0.84799876,109200.0,109190.0,0.002]
[1756773695286,0.87262768,109200.0,109190.0,0.002]
[1756773696394,0.86953768,109200.0,109190.0,0.002]
[1756773696572,0.87255768,109200.0,109190.0,0.002]
[1756773696977,0.86953768,109200.0,109190.0,0.002]
[1756773698150,0.63422858,109200.0,109190.0,0.002]
[1756773698355,0.84491576,109200.0,109190.0,0.002]
[1756773699831,0.84491576,109200.0,109190.0,0.00402]
[1756773700039,0.82036631,109200.0,109190.0,0.00695]
[1756773700216,0.66230631,109200.0,109190.0,0.00695]
[1756773700421,0.82476892,109200.0,109190.0,0.00695]
[1756773700676,0.81830631,109200.0,109190.0,0.00695]
[1756773701462,0.72639032,109200.0,109190.0,0.00695]
[1756773702068,0.57039032,109200.0,109190.0,0.00695]
[1756773702433,0.72639032,109200.0,109190.0,0.19011695]
[1756773702643,0.57039032,109200.0,109190.0,0.19011695]
[1756773702867,0.72639032,109200.0,109190.0,0.19011695]
[1756773704850,0.57039032,109200.0,109190.0,0.19011695]
[1756773705802,0.04724014,109200.0,109190.0,0.19011695]
[1756773706021,0.027537,109200.0,109190.0,0.19011695]
[1756773707684,0.21068718,109200.0,109190.0,0.19011695]
[1756773707878,0.027537,109200.0,109190.0,0.19011695]
[1756773708692,0.21068718,109200.0,109190.0,0.19011695]
[1756773711947,0.027537,109200.0,109190.0,0.19011695]
[1756773713157,0.21068718,109200.0,109190.0,0.19011695]
[1756773721309,0.21068718,109200.0,109190.0,0.00695]
[1756773721535,0.21579718,109200.0,109190.0,0.002]
[1756773721970,0.21277718,109200.0,109190.0,0.002]
[1756773722865,0.21068718,109200.0,109190.0,0.00695]
[1756773723575,0.21277718,109200.0,109190.0,0.00695]
[1756773723826,0.21277718,109200.0,109190.0,0.002]
[1756773726386,0.21597718,109200.0,109190.0,0.002]
[1756773726607,0.71185718,109200.0,109190.0,0.002]
[1756773727080,0.82832262,109200.0,109190.0,0.002]
[1756773728652,0.848036,109200.0,109190.0,0.002]
[1756773732588,0.8591529,109200.0,109190.0,0.002]
[1756773738336,0.90695513,109200.0,109190.0,0.002]
[1756773738545,0.88378182,109200.0,109190.0,0.002]
[1756773738762,0.98211391,109200.0,109190.0,0.002]
[1756773738980,0.89019792,109200.0,109190.0,0.002]
[1756773740311,0.66345486,109200.0,109190.0,0.002]
[1756773740551,0.30317572,109200.0,109190.0,0.002]
[1756773740757,0.5138629,109200.0,109190.0,0.002]
[1756773742588,0.8538629,109200.0,109190.0,0.002]
[1756773745337,0.94577889,109200.0,109190.0,0.002]
[1756773748971,0.97782901,109200.0,109190.0,0.002]
[1756773750421,1.00245793,109200.0,109190.0,0.002]
[1756773750623,0.18316695,109190.0,109180.0,0.00324]
[1756773750832,0.18320051,109170.0,109160.0,0.07354631]
[1756773751035,0.18320051,109170.0,109160.0,0.07401764]
[1756773751241,0.21074051,109170.0,109160.0,0.07597764]
[1756773751450,0.21074051,109170.0,109160.0,0.00567133]
[1756773752283,0.21074051,109170.0,109160.0,0.01067133]
[1756773753265,0.21074051,109170.0,109160.0,0.01267133]
[1756773767515,0.23046888,109170.0,109160.0,0.01071133]
[1756773768510,0.23046888,109170.0,109160.0,0.00747133]
[1756773768923,0.34693432,109170.0,109160.0,0.00747133]
[1756773769085,0.68693432,109170.0,109160.0,0.00747133]
[1756773769513,0.71796621,109170.0,109160.0,0.00747133]
[1756773769709,0.76793544,109170.0,109160.0,0.00747133]
[1756773770010,0.78887426,109170.0,109160.0,0.00747133]
[1756773770188,0.78887426,109170.0,109140.0,0.0004]
[1756773770189,0.52323408,109150.0,109140.0,0.0004]
[1756773770349,0.79059844,109150.0,109140.0,0.0004]
[1756773770552,0.81514789,109150.0,109140.0,0.00054143]
[1756773770749,0.87551592,109150.0,109140.0,0.00054143]
[1756773771377,0.952497,109150.0,109140.0,0.00054143]
[1756773772148,0.92932369,109150.0,109140.0,0.00054143]
[1756773772359,0.93032369,109150.0,109140.0,0.00054143]
[1756773772949,0.90566619,109150.0,109140.0,0.00054143]
[1756773773283,0.99758218,109150.0,109140.0,0.00054143]
[1756773773663,1.00258218,109150.0,109140.0,0.00154143]
[1756773773898,0.9509573,109150.0,109140.0,0.00154143]
[1756773775173,1.00026072,109150.0,109140.0,0.00154143]
[1756773776441,1.00017277,109150.0,109140.0,0.00154143]
[1756773776905,0.79514935,109150.0,109140.0,0.00154143]
[1756773777081,0.95090935,109150.0,109140.0,0.00154143]
[1756773777325,1.09212876,109150.0,109140.0,0.00154143]
[1756773777537,1.05925981,109150.0,109140.0,0.00154143]
[1756773778189,1.092131,109150.0,109140.0,0.00154143]
[1756773778404,0.96734382,109150.0,109140.0,0.00154143]
[1756773782333,0.9180404,109150.0,109140.0,0.00154143]
[1756773783245,0.9837783,109150.0,109140.0,0.00154143]
[1756773783792,0.54780032,109140.0,109130.0,0.00362]
[1756773784000,0.74067463,109140.0,109130.0,0.00583075]
[1756773785086,0.74750563,109140.0,109130.0,0.00583075]
[1756773785233,0.806522,109140.0,109130.0,0.00062075]
[1756773785431,0.75724163,109140.0,109130.0,0.00384075]
[1756773785632,0.91293644,109140.0,109130.0,0.00384075]
[1756773785863,0.96898784,109140.0,109130.0,0.00591075]
[1756773786069,0.9789097,109140.0,109130.0,0.00591075]
[1756773786282,0.89156885,109140.0,109130.0,0.00591075]
[1756773786535,0.89156775,109140.0,109130.0,0.00591075]
[1756773786962,0.84607948,109140.0,109130.0,0.00591075]
[1756773789165,0.87062893,109140.0,109130.0,0.00591075]
[1756773792789,0.87063214,109140.0,109130.0,0.00591075]
[1756773793699,0.96077611,109140.0,109130.0,0.00591075]
[1756773793946,0.93637004,109140.0,109130.0,0.00591075]
[1756773794145,0.84608269,109140.0,109130.0,0.00591075]
[1756773795289,0.89055438,109140.0,109130.0,0.00591075]
[1756773796233,0.89060611,109140.0,109130.0,0.00591075]
[1756773796691,0.89061847,109140.0,109130.0,0.00591075]
[1756773799638,0.89063437,109140.0,109130.0,0.00591075]
[1756773801356,0.92346937,109140.0,109130.0,0.00591075]
[1756773801567,1.03997191,109140.0,109130.0,0.00062075]
[1756773801987,1.03997257,109140.0,109130.0,0.00062075]
[1756773802432,0.94805658,109140.0,109130.0,0.00062075]
[1756773802846,0.94805658,109140.0,109130.0,0.00384075]
[1756773803460,0.89879682,109140.0,109130.0,0.00384075]
[1756773804818,0.89879682,109140.0,109130.0,0.00591075]
[1756773805463,0.92342881,109140.0,109130.0,0.00591075]
[1756773806377,0.92342881,109140.0,109130.0,0.00384075]
[1756773806597,0.91487907,109140.0,109130.0,0.00384075]
[1756773806777,0.92349788,109140.0,109130.0,0.00384075]
[1756773807006,0.92349788,109140.0,109130.0,0.00591075]
[1756773807162,0.92349794,109140.0,109130.0,0.00591075]
[1756773811969,0.89894849,109140.0,109130.0,0.00591075]
[1756773813478,0.73463558,109140.0,109130.0,0.00591075]
[1756773813684,0.86607629,109140.0,109130.0,0.00591075]
[1756773814645,0.71035629,109140.0,109130.0,0.00591075]
[1756773814834,0.7741603,109140.0,109130.0,0.00591075]
[1756773815038,0.6184403,109140.0,109130.0,0.00591075]
[1756773815247,0.7741603,109140.0,109130.0,0.00591075]
[1756773816844,0.60988459,109140.0,109130.0,0.00591075]
[1756773817032,0.774165,109140.0,109130.0,0.00591075]
[1756773817657,0.77416309,109140.0,109130.0,0.00591075]
[1756773817861,0.77416309,109140.0,109130.0,0.18917841]
[1756773818071,0.07056023,109140.0,109130.0,0.18917841]
[1756773818297,0.72386793,109140.0,109130.0,0.18917841]
[1756773818500,0.52088869,109140.0,109130.0,0.18917841]
[1756773818709,0.51447286,109140.0,109130.0,0.18917841]
[1756773819498,0.008831,109140.0,109130.0,0.18917841]
[1756773819732,0.007831,109140.0,109130.0,0.2810944]
[1756773820173,0.008831,109140.0,109130.0,0.2810944]
[1756773820380,0.006831,109140.0,109130.0,0.2810944]
[1756773820559,0.53326064,109150.0,109140.0,0.18325087]
[1756773820772,0.56080264,109150.0,109140.0,0.1906115]
[1756773820978,0.56080264,109150.0,109140.0,0.18832087]
[1756773821177,0.56080264,109150.0,109140.0,0.00507]
[1756773821390,0.367542,109150.0,109140.0,0.1906115]
[1756773821598,0.367542,109150.0,109140.0,0.18832087]
[1756773821808,0.369542,109150.0,109140.0,0.18832087]
[1756773822019,0.342,109150.0,109140.0,0.18832087]
[1756773822229,0.342,109150.0,109140.0,0.28023686]
[1756773822796,0.343,109150.0,109140.0,0.28023686]
[1756773823524,0.52623408,109150.0,109140.0,0.00507]
[1756773823741,0.52325087,109140.0,109130.0,0.00062075]
[1756773823954,0.67949087,109140.0,109130.0,0.00062075]
[1756773824165,0.70404032,109140.0,109130.0,0.00062075]
[1756773825550,0.82350431,109140.0,109130.0,0.00062075]
[1756773825730,0.84316154,109140.0,109130.0,0.00062075]
[1756773826903,0.84416154,109140.0,109130.0,0.00062075]
[1756773827554,0.84416334,109140.0,109130.0,0.00062075]
[1756773828004,0.84616334,109140.0,109130.0,0.00062075]
[1756773828233,0.84516334,109140.0,109130.0,0.00062075]
[1756773828488,0.84616334,109140.0,109130.0,0.00062075]
[1756773828689,0.82161389,109140.0,109130.0,0.00062075]
[1756773829773,0.83353419,109140.0,109130.0,0.00062075]
[1756773830201,0.85808364,109140.0,109130.0,0.00062075]
[1756773830828,0.84616334,109140.0,109130.0,0.00062075]
[1756773842147,0.87073713,109140.0,109130.0,0.00062075]
[1756773842375,0.90030715,109140.0,109130.0,0.00062075]
[1756773842611,0.91736444,109140.0,109130.0,0.00062075]
[1756773842915,0.67763547,109140.0,109130.0,0.00062075]
[1756773843140,0.86088634,109140.0,109130.0,0.00062075]
[1756773843848,0.86941405,109140.0,109130.0,0.00062075]
[1756773844096,0.89398585,109140.0,109130.0,0.00062075]
[1756773844338,0.93196229,109140.0,109130.0,0.00062075]
[1756773844793,0.89398585,109140.0,109130.0,0.00062075]
[1756773846322,0.86941206,109140.0,109130.0,0.00062075]
[1756773846879,0.91492467,109140.0,109130.0,0.00062075]
[1756773847293,0.89037522,109140.0,109130.0,1e-08]
[1756773847532,0.89147012,109140.0,109130.0,1e-08]
[1756773847775,1.05683034,109140.0,109130.0,1e-08]
[1756773848058,0.54420648,109130.0,109120.0,1e-08]
[1756773848280,0.93001396,109130.0,109120.0,1e-08]
[1756773848707,0.95757196,109130.0,109120.0,1e-08]
[1756773849108,0.99066893,109130.0,109120.0,1e-08]
[1756773849410,0.98214575,109130.0,109120.0,1e-08]
[1756773849831,0.98614575,109130.0,109120.0,1e-08]
[1756773850387,0.98609683,109130.0,109120.0,1e-08]
[1756773850606,0.98609683,109130.0,109120.0,0.00516001]
[1756773850607,0.83033683,109130.0,109120.0,0.00516001]
[1756773850827,0.91606195,109130.0,109120.0,0.00516001]
[1756773851034,0.91605467,109130.0,109120.0,0.00516001]
[1756773851244,0.94060128,109130.0,109120.0,0.00516001]
[1756773851455,1.05706672,109130.0,109120.0,1e-08]
[1756773851875,0.96515073,109130.0,109120.0,1e-08]
[1756773852291,0.9736751,109130.0,109120.0,0.00312001]
[1756773852973,1.0065101,109130.0,109120.0,0.00516001]
[1756773853180,0.96515073,109130.0,109120.0,0.00516001]
[1756773853822,0.99798573,109130.0,109120.0,0.00516001]
[1756773854478,1.00651369,109130.0,109120.0,0.00516001]
[1756773855835,1.00651369,109130.0,109120.0,0.00312001]
[1756773856048,1.00651369,109130.0,109120.0,0.00516001]
[1756773857203,1.00651255,109130.0,109120.0,0.00516001]
[1756773857825,0.97455,109130.0,109120.0,0.00516001]
[1756773858077,1.00652664,109130.0,109120.0,0.00516001]
[1756773858651,0.99799954,109130.0,109120.0,0.00516001]
[1756773859311,1.00652646,109130.0,109120.0,0.00516001]
[1756773859587,1.00652646,109130.0,109120.0,1e-08]
[1756773860185,1.21726773,109130.0,109120.0,1e-08]
[1756773860617,1.18443273,109130.0,109120.0,1e-08]
[1756773861052,1.23443273,109130.0,109120.0,1e-08]
[1756773862691,0.54422327,109120.0,109110.0,1e-08]
[1756773862911,0.92397707,109120.0,109110.0,1e-08]
[1756773863349,0.97765107,109120.0,109110.0,1e-08]
[1756773863769,1.02691083,109120.0,109110.0,1e-08]
[1756773864392,1.02891083,109120.0,109110.0,1e-08]
[1756773864741,1.02691083,109120.0,109110.0,1e-08]
[1756773864954,0.90452403,109120.0,109110.0,0.00516001]
[1756773865165,0.90652403,109120.0,109110.0,0.00516001]
[1756773865346,0.88396831,109120.0,109110.0,0.00516001]
[1756773865710,0.88196831,109120.0,109110.0,0.00516001]
[1756773865947,0.88396831,109120.0,109110.0,0.00516001]
[1756773866156,0.90851776,109120.0,109110.0,0.00516001]
[1756773866359,0.99862033,109120.0,109110.0,0.00312001]
[1756773867650,0.99862033,109120.0,109110.0,0.00516001]
[1756773868280,0.99009341,109120.0,109110.0,0.00516001]
[1756773868544,0.99862861,109120.0,109110.0,0.00516001]
[1756773868957,1.0905446,109120.0,109110.0,0.00516001]
[1756773869250,1.0578033,109120.0,109110.0,0.00516001]
[1756773869845,1.0578033,109120.0,109110.0,0.00312001]
[1756773870300,1.0578033,109120.0,109110.0,0.00516001]
[1756773870724,0.9020033,109120.0,109110.0,0.00516001]
[1756773870929,1.0578033,109120.0,109110.0,0.00516001]
[1756773871075,1.05780372,109120.0,109110.0,0.00516001]
[1756773871283,0.81008773,109120.0,109110.0,0.00516001]
[1756773871488,0.96588773,109120.0,109110.0,0.00516001]
[1756773871894,0.94494891,109120.0,109110.0,0.00516001]
[1756773873666,0.94494891,109120.0,109110.0,1e-08]
[1756773874113,0.94494891,109120.0,109110.0,0.00312001]
[1756773874317,0.94494891,109120.0,109110.0,1e-08]
[1756773874773,1.0295449,109120.0,109110.0,1e-08]
[1756773875303,1.00395659,109120.0,109110.0,1e-08]
[1756773875518,1.02956264,109120.0,109110.0,0.00312001]
[1756773875909,0.94496665,109120.0,109110.0,0.00312001]
[1756773876904,0.78916665,109120.0,109110.0,0.00508001]
[1756773877136,0.9204172,109120.0,109110.0,0.00508001]
[1756773877345,0.95320285,109120.0,109110.0,0.00508001]
[1756773877806,0.90394309,109120.0,109110.0,0.00508001]
[1756773878029,0.86310028,109120.0,109110.0,0.00508001]
[1756773878254,0.98016108,109120.0,109110.0,0.00508001]
[1756773878499,1.00471053,109120.0,109110.0,0.00508001]
[1756773878948,1.00473188,109120.0,109110.0,0.00508001]
[1756773879390,0.78113084,109120.0,109110.0,0.00508001]
[1756773879576,0.92835104,109120.0,109110.0,0.00508001]
[1756773879904,0.93689091,109120.0,109110.0,0.00508001]
[1756773880317,0.97912857,109120.0,109110.0,0.00508001]
[1756773881373,1.04045505,109120.0,109110.0,1e-08]
[1756773881593,1.08311128,109120.0,109110.0,1e-08]
[1756773881812,1.08789935,109120.0,109110.0,1e-08]
[1756773883250,1.1371043,109120.0,109110.0,1e-08]
[1756773885912,1.13711508,109120.0,109110.0,1e-08]
[1756773887371,1.08791013,109120.0,109110.0,1e-08]
[1756773889601,1.08792243,109120.0,109110.0,1e-08]
[1756773891404,1.03857103,109120.0,109110.0,0.00508001]
[1756773891619,0.52331805,109100.0,109090.0,0.00125092]
[1756773891821,0.88011482,109100.0,109090.0,0.00125092]
[1756773892185,0.88011482,109100.0,109090.0,0.00321092]
[1756773892866,0.85105547,109100.0,109090.0,0.00321092]
[1756773893704,0.85105547,109100.0,109090.0,0.00733092]
[1756773894786,0.90342554,109100.0,109090.0,0.00733092]
[1756773897510,0.92634436,109100.0,109090.0,0.00537092]
[1756773897719,0.92634436,109100.0,109090.0,0.00225092]
[1756773898133,0.92634436,109100.0,109090.0,0.00537092]
[1756773898349,0.92634436,109100.0,109090.0,0.00733092]
[1756773898557,0.92634436,109100.0,109090.0,0.00225092]
[1756773898760,1.06563488,109100.0,109090.0,0.00225092]
[1756773899020,1.06416488,109100.0,109090.0,0.00225092]
[1756773899767,1.03211748,109100.0,109090.0,0.00225092]
[1756773899997,1.06415025,109100.0,109090.0,0.00125092]
[1756773900218,1.06615025,109100.0,109090.0,0.00125092]
[1756773900648,0.97423426,109100.0,109090.0,0.00125092]
[1756773901110,0.97623426,109100.0,109090.0,0.00125092]
[1756773901514,0.97423426,109100.0,109090.0,0.00125092]
[1756773901767,0.97623426,109100.0,109090.0,0.00125092]
[1756773902215,0.9762308,109100.0,109090.0,0.00125092]
[1756773904609,0.9762308,109100.0,109090.0,0.00437092]
[1756773905648,0.81846926,109100.0,109090.0,0.00645092]
[1756773905857,0.99880821,109100.0,109090.0,0.00645092]
[1756773906600,0.99880841,109100.0,109090.0,0.00645092]
[1756773906811,0.61328014,109100.0,109090.0,0.00645092]
[1756773907228,0.95328014,109100.0,109090.0,0.00645092]
[1756773909038,0.79757601,109100.0,109090.0,0.00645092]
[1756773909242,0.90553098,109100.0,109090.0,0.00645092]
[1756773909467,0.8638726,109100.0,109090.0,0.00645092]
[1756773909847,0.54571661,109100.0,109090.0,0.00645092]
[1756773910054,0.69943661,109100.0,109090.0,0.18978578]
[1756773910235,0.69743661,109100.0,109090.0,0.18978578]
[1756773910484,0.54271661,109100.0,109090.0,0.18978578]
[1756773910630,0.54371661,109100.0,109090.0,0.18978578]
[1756773910834,0.70443661,109100.0,109090.0,0.18978578]
[1756773911043,0.54871661,109100.0,109090.0,0.18978578]
[1756773911244,0.54504161,109100.0,109090.0,0.18978578]
[1756773911893,0.36172356,109100.0,109090.0,0.18978578]
[1756773912095,0.51744356,109100.0,109090.0,0.18978578]
[1756773912291,0.70076161,109100.0,109090.0,0.18978578]
[1756773912470,0.51744356,109100.0,109090.0,0.18978578]
[1756773912854,0.70076161,109100.0,109090.0,0.18978578]
[1756773914643,0.51744356,109100.0,109090.0,0.18978578]
[1756773915044,0.36172356,109100.0,109090.0,0.18978578]
[1756773915250,0.54504161,109100.0,109090.0,0.00645092]
[1756773915425,0.52540432,109100.0,109090.0,0.00645092]
[1756773916045,0.34103805,109100.0,109090.0,0.00645092]
[1756773916249,0.36859305,109100.0,109090.0,0.00645092]
[1756773924735,0.36859305,109100.0,109090.0,0.19207746]
[1756773924919,0.36859305,109100.0,109090.0,0.18978578]
[1756773925081,0.21287305,109100.0,109090.0,0.18978578]
[1756773925285,0.21287305,109100.0,109090.0,0.00645092]
[1756773926780,0.21287305,109100.0,109090.0,0.0087426]
[1756773926985,0.21287305,109100.0,109090.0,0.00645092]
[1756773928026,0.21485305,109100.0,109090.0,0.00418092]
[1756773928209,0.21485305,109100.0,109090.0,0.00125092]
[1756773928436,0.30676904,109100.0,109090.0,0.00125092]
[1756773928640,0.33278849,109100.0,109090.0,0.00125092]
[1756773929858,0.35245575,109100.0,109090.0,0.00125092]
[1756773933030,0.35098575,109100.0,109090.0,0.00125092]
[1756773933274,0.35245575,109100.0,109090.0,0.00125092]
[1756773933482,0.37415906,109100.0,109090.0,0.00125092]
[1756773933685,0.35098575,109100.0,109090.0,0.00125092]
[1756773933884,0.35245575,109100.0,109090.0,0.00125092]
[1756773934617,0.35098575,109100.0,109090.0,0.00125092]
[1756773936757,0.3264363,109100.0,109090.0,0.00625092]
[1756773936960,0.4821163,109100.0,109090.0,0.00625092]
[1756773937164,0.38822031,109100.0,109090.0,0.00625092]
[1756773941232,0.39020031,109100.0,109090.0,0.00625092]
[1756773941672,0.39020031,109100.0,109090.0,0.00125092]
[1756773942312,0.39020031,109100.0,109090.0,0.00424092]
[1756773942510,0.38822031,109100.0,109090.0,0.00625092]
[1756773944013,0.23254031,109100.0,109090.0,0.00625092]
[1756773944216,0.38822031,109100.0,109090.0,0.00625092]